Cogmind - Beta 15 @@@ ROGUE MODE // 2025.05.23 @ 04:45:01 Player: Lillith Result: Self-destructed Performance ------------- Evolutions (3) 1500 Regions Visited (9) 1800 Robots Destroyed (35) 175 Value Destroyed (1161) 1161 Prototype IDs (27) 540 Alien Tech Used (0) 0 Bonus (800) 800 TOTAL SCORE: 5976 Bonus ------- Entered DSFs 500 Aligned with FarCom 300 Cogmind --------- Core Integrity 642/700 Matter 0/300 Energy 300/300 System Corruption 10% Temperature Cool (0) Movement Hovering (51) Location -7/DSF Parts ------- > --- POWER (1) -------- Enhanced Nuclear Core > --- PROPULSION (4) --- Gravmag System Cooled Airjet > --- UTILITY (4) ------ Small Storage Unit Improved Light Armor Plating > --- WEAPON (4) ------- (None) > --- INVENTORY (8) ---- Micro Nuclear Core Compact Matter Pod (144) Machine Analyzer Transmission Jammer Gauss Rifle Advanced Assault Cannon Heavy Missile Launcher Chainsword Peak State ------------ > --- POWER ------------ Enhanced Nuclear Core > --- PROPULSION ------- Airjet Airjet Aerolev Unit Cooled Airjet > --- UTILITY ---------- Small Storage Unit Seismic Detector Modified TNC Transmission Jammer > --- WEAPON ----------- Enhanced Autogun Gauss Rifle Improved Datajack Chainsword > --- INVENTORY -------- Micro Nuclear Core Gravmag System Compact Matter Pod Advanced ECM Suite Improved Light Armor Plating Improved Medium Armor Plating Advanced Assault Cannon Heavy Missile Launcher [Rating: 50] Favorites ----------- Power Light Ion Engine Engine Light Ion Engine Power Core Light Nuclear Core Propulsion Compact Wheel Treads Light Treads Wheel Compact Wheel Hover Unit Airjet Utility Seismic Detector Device Seismic Detector Storage Small Storage Unit Processor Modified TNC Protection Improved Light Armor Plating Weapon Assault Rifle Ballistic Gun Assault Rifle Ballistic Cannon Advanced Assault Cannon Launcher Shock Bomb Launcher Slashing Weapon Chainsword Special Melee Weapon Improved Datajack Build | -11 -10 -10 -10 -9 -8 -7 -7 -7 -7 ------- Run | Yrd Mat Min Exi Min Mat Fac Was Fac DSF Slots Evolved 6 | . . . . . 4 2 . . . Power . | . . . . . . . . . . Propulsion 2 | . . . . . 1 1 . . . Utility 2 | . . . . . 1 1 . . . Weapon 2 | . . . . . 2 . . . . Parts Attached 43 | 8 . 2 . 1 20 8 . . 4 Power 3 | 1 . . . . 1 1 . . . Engine 1 | 1 . . . . . . . . . Core 2 | . . . . . 1 1 . . . Reactor . | . . . . . . . . . . Propulsion 11 | 2 . 2 . . 3 3 . . 1 Treads 2 | 2 . . . . . . . . . Leg . | . . . . . . . . . . Wheel 2 | . . 2 . . . . . . . Hover 7 | . . . . . 3 3 . . 1 Flight . | . . . . . . . . . . Utility 9 | 2 . . . . 3 2 . . 2 Device 3 | 1 . . . . . 1 . . 1 Storage 2 | 1 . . . . 1 . . . . Processor 1 | . . . . . 1 . . . . Hackware . | . . . . . . . . . . Protection 3 | . . . . . 1 1 . . 1 Artifact . | . . . . . . . . . . Weapon 20 | 3 . . . 1 13 2 . . 1 Energy Gun . | . . . . . . . . . . Energy Cannon . | . . . . . . . . . . Ballistic Gun 10 | 3 . . . 1 5 1 . . . Ballistic Cannon 4 | . . . . . 4 . . . . Launcher 3 | . . . . . 2 . . . 1 Special Weapon . | . . . . . . . . . . Impact Weapon . | . . . . . . . . . . Slashing Weapon 1 | . . . . . . 1 . . . Piercing Weapon . | . . . . . . . . . . Special Melee Weapon 2 | . . . . . 2 . . . . Unidentified Prototypes 4 | . . . . . 2 2 . . . Parts Lost 9 | . . . . . 2 . . . 7 Power 1 | . . . . . 1 . . . . Propulsion 3 | . . . . . . . . . 3 Utility 4 | . . . . . 1 . . . 3 Weapon 1 | . . . . . . . . . 1 Highest Loss Streak 6 | . . . . . 2 . . . 6 To Critical Strikes . | . . . . . . . . . . Average Backups 7 | 2 6 7 8 8 9 7 8 8 6 Power . | . 1 1 1 1 . . 1 1 1 Propulsion 1 | 1 2 2 1 1 1 . 1 1 . Utility 2 | . 1 1 2 3 3 3 4 4 3 Weapon 2 | . 1 2 2 2 2 2 2 2 2 Tool/Special . | . . . . . . . . . . Unused Backups 14 | . . 1 . 2 4 4 . . 3 Power 2 | . . . . . . 1 . . 1 Propulsion 1 | . . . . . 1 . . . . Utility 7 | . . 1 . 1 . 3 . . 2 Weapon 4 | . . . . 1 3 . . . . Tool/Special . | . . . . . . . . . . Average Slot Usage (%) 97 | . 100 100 100 100 94 99 100 100 79 Engine 6 | . 14 14 14 14 2 . . . . Core 3 | . . . . . 4 7 7 7 7 Treads 4 | . 28 2 . . 6 . . . . Wheel 13 | . . 25 28 28 13 . . . . Hover 9 | . . . . . 7 29 30 30 24 Device 10 | . 14 14 14 14 6 10 7 7 3 Storage 10 | . 14 14 14 14 9 7 7 7 7 Processor 4 | . . . . . 8 7 7 7 1 Protection 2 | . . . . . 2 3 7 7 11 Ballistic Gun 22 | . 28 28 28 28 20 17 7 15 12 Ballistic Cannon 2 | . . . . . 5 . 7 . 1 Slashing Weapon 1 | . . . . . . 4 7 7 1 Special Melee Weapon 3 | . . . . . 6 7 7 7 2 Peak Build Rating 50 | 7 7 8 8 10 40 50 50 50 50 Average Rating 22 | 5 7 7 7 8 27 47 50 50 39 On Entrance 22 | . 7 7 8 8 10 38 50 50 50 Naked Turns . | . . . . . . . . . . Heaviest Build 51 | 13 13 13 13 14 51 28 31 28 43 Greatest Support 40 | 40 40 40 32 32 32 33 33 33 34 Greatest Overweight (x) 2 | . . . . . 2 . . . 1 Average Overweight (x) . | . . . . . . . . . . Largest Inventory Capacity 15 | 8 8 8 8 8 15 8 8 8 8 Average Capacity 9 | 7 8 8 8 8 12 8 8 8 8 Most Carried 15 | 5 8 8 8 8 15 8 8 8 8 Average Carried 8 | 2 6 7 7 7 9 7 8 8 6 Final Capacity 8 | 8 8 8 8 8 8 8 8 8 8 Final Carried 8 | 5 8 8 8 8 8 8 8 8 8 Class Distribution -------------------- 67% | Mutant 31% | Skirmisher Dominant Class ---------------- Mutant | -10/Materials Mutant | -10/Mines Mutant | -10/Exiles Mutant | -9/Mines Skirmisher | -8/Materials Mutant | -7/Factory Mutant | -7/Waste Mutant | -7/Factory Mutant | -7/DSF Resources | -11 -10 -10 -10 -9 -8 -7 -7 -7 -7 ----------- Run | Yrd Mat Min Exi Min Mat Fac Was Fac DSF Matter Collected 1548 | 292 18 51 . 41 798 330 . . 18 Remotely . | . . . . . . . . . . Salvage Created 1280 | 76 45 25 . 19 808 227 . . 80 Parts 87 | 7 5 2 . 3 53 16 . . 1 Haulers Intercepted 3 | . . . . . 2 1 . . . Recyclers Shooed . | . . . . . . . . . . Parts Field Recycled . | . . . . . . . . . . Retrieved Matter . | . . . . . . . . . . Parts Self-Destructed . | . . . . . . . . . . Prevented . | . . . . . . . . . . Kills | -11 -10 -10 -10 -9 -8 -7 -7 -7 -7 ------- Run | Yrd Mat Min Exi Min Mat Fac Was Fac DSF Combat Hostiles Destroyed 20 | . 1 . . . 14 4 . . 1 Guns 12 | . 1 . . . 9 2 . . . Cannons 2 | . . . . . . 2 . . . AOE 6 | . . . . . 5 . . . 1 Classes Destroyed 11 | 2 1 1 . . 5 1 . . 1 Worker 5 | . . 1 . . 4 . . . . Builder 2 | . . . . . 2 . . . . Tunneler 3 | 1 . . . 1 . 1 . . . Hauler 3 | . . . . . 2 1 . . . Recycler 1 | 1 . . . . . . . . . Watcher 1 | . . . . . 1 . . . . Grunt 15 | . 1 . . . 11 3 . . . Sentry 2 | . . . . . 2 . . . . Hunter 1 | . . . . . 1 . . . . Programmer 1 | . . . . . . 1 . . . Heavy 1 | . . . . . . . . . 1 Best Kill Streak 7 | 2 1 1 . 1 7 2 . . 1 Combat Bots Only 5 | . 1 . . . 5 1 . . 1 Max Kills in Single Turn 2 | 1 1 1 . 1 2 1 . . 1 Gunslinging . | . . . . . . . . . . Exploded 2 | . . . . . 2 . . . 1 Melee . | . . . . . . . . . . Uniques/NPCs Destroyed . | . . . . . . . . . . Combat | -11 -10 -10 -10 -9 -8 -7 -7 -7 -7 -------- Run | Yrd Mat Min Exi Min Mat Fac Was Fac DSF Hostile Shots Fired 106 | . 3 . . . 52 12 . . 39 Missed 35 | . 1 . . . 12 6 . . 16 Hits 71 | . 2 . . . 40 6 . . 23 Melee 3 | . . . . . . . . . 3 Projectile 68 | . 2 . . . 40 6 . . 20 AOE 1 | . . . . . . . . . 1 Critical Strikes 6 | . . . . . 1 . . . 5 Damage Taken 1597 | . 20 1 . . 824 109 . . 643 Core 255 | . . . . . 197 . . . 58 Absorbed by Shields . | . . . . . . . . . . Core Remaining (%) 88 | 100 . . . 100 64 . . . . Volleys Fired 79 | 3 4 4 . 1 47 9 . . 11 Largest 4 | 2 2 2 . 2 4 3 . . 3 Hottest 112 | 40 40 40 . 40 112 93 . . 93 Shots Fired 200 | 6 8 8 1 2 132 27 . . 16 Gun 170 | 6 8 8 1 2 117 22 . . 6 Cannon 15 | . . . . . 9 5 . . 1 Launcher 15 | . . . . . 6 . . . 9 Special . | . . . . . . . . . . Kinetic 185 | 6 8 8 1 2 126 27 . . 7 Thermal . | . . . . . . . . . . Explosive 9 | . . . . . . . . . 9 Electromagnetic 6 | . . . . . 6 . . . . Robot Hit Streak 8 | 3 7 1 . 2 8 8 . . 4 Robot Miss Streak 5 | 1 1 4 . . 5 3 . . 3 Penetration Max 1 | . . . . . 1 . . . . Secondary Targets . | . . . . . . . . . . Shots Hit Robots 113 | 3 6 2 . 1 73 20 . . 8 Core Hits 73 | 3 2 1 . 1 44 8 . . 14 Critical Kills . | . . . . . . . . . . Critical Parts Destroyed 2 | . . . . . 1 1 . . . Critical Strikes 2 | . . . . . 1 1 . . . Destroy 2 | . . . . . 1 1 . . . Melee Attacks 13 | . . . . . 3 10 . . . Impact . | . . . . . . . . . . Slashing 10 | . . . . . . 10 . . . Piercing . | . . . . . . . . . . Sneak Attacks 4 | . . . . . 3 1 . . . Combat Hostiles . | . . . . . . . . . . Follow-up Attacks . | . . . . . . . . . . Damage Inflicted 3445 | 31 70 24 . 12 2158 474 . . 676 Guns 1675 | 31 70 22 . 12 1212 285 . . 43 Cannons 262 | . . . . . 147 115 . . . Explosions 1417 | . . . . . 784 . . . 633 Melee 74 | . . . . . . 74 . . . Ramming 17 | . . 2 . . 15 . . . . Kinetic 1937 | 31 70 22 . 12 1359 400 . . 43 Thermal 482 | . . . . . 482 . . . . Explosive 633 | . . . . . . . . . 633 Electromagnetic 302 | . . . . . 302 . . . . Impact . | . . . . . . . . . . Slashing 74 | . . . . . . 74 . . . Piercing . | . . . . . . . . . . Highest Corruption 10 | . 2 2 2 2 . . 10 10 10 Average Corruption 2 | . 2 2 2 2 . . 10 10 10 Corruption Purged . | . . . . . . . . . . Corruption Blocked . | . . . . . . . . . . Effects 22 | . 2 6 3 3 . . 2 . 6 Message Errors 7 | . 1 2 . 2 . . 1 . 1 Matter Fused 5 | . . 1 1 1 . . . . 2 Heat Flow Errors 1 | . . . . . . . . . 1 Energy Discharges 5 | . 1 2 . . . . 1 . 1 Data Loss (minor) 1 | . . . 1 . . . . . . Misfires 1 | . . . 1 . . . . . . Alerts 1 | . . 1 . . . . . . . Misdirections 1 | . . . . . . . . . 1 Overload Shots . | . . . . . . . . . . Overflow Damage 113 | . . . . . 113 . . . . Projectiles . | . . . . . . . . . . Explosions 113 | . . . . . 113 . . . . Melee . | . . . . . . . . . . Knockbacks 3 | . . . . . 2 1 . . . Impact 1 | . . . . . 1 . . . . Kinetic 2 | . . . . . 1 1 . . . Secondary . | . . . . . . . . . . Self-Inflicted Damage 235 | . . 1 . . 234 . . . . Shots 2 | . . . . . 2 . . . . Rammed 3 | . . 1 . . 2 . . . . Targets Rammed 3 | . . 1 . . 2 . . . . Kicked . | . . . . . . . . . . Crushed . | . . . . . . . . . . Highest Temperature 213 | . . . . . 111 114 . . 213 Average Temperature 35 | . . . . . 25 46 . . 86 Received Heat Transfer 408 | . 12 . . . 261 36 . . 99 Siege Activations . | . . . . . . . . . . Martial Activations . | . . . . . . . . . . Shielding Activations . | . . . . . . . . . . Robots Disrupted 1 | . . . . . 1 . . . . Combat Hostiles 1 | . . . . . 1 . . . . Robots Corrupted . | . . . . . . . . . . Combat Hostiles . | . . . . . . . . . . Parts Fried . | . . . . . . . . . . Impact Corruptions . | . . . . . . . . . . Robots Melted . | . . . . . . . . . . Combat Hostiles . | . . . . . . . . . . Parts Melted . | . . . . . . . . . . Heat Transferred 400 | . . . . . 400 . . . . Parts Sabotaged . | . . . . . . . . . . Parts Stolen . | . . . . . . . . . . Parts Stripped . | . . . . . . . . . . Power Chain Reactions 2 | . . . . . 2 . . . . Alert | -11 -10 -10 -10 -9 -8 -7 -7 -7 -7 ------- Run | Yrd Mat Min Exi Min Mat Fac Was Fac DSF Maximum Alert Level 1 | . . . . . 1 . . . . Low Security (%) 88 | 100 100 100 . 100 66 100 100 100 100 Level 1 11 | . . . . . 33 . . . . Level 2 . | . . . . . . . . . . Level 3 . | . . . . . . . . . . Level 4 . | . . . . . . . . . . Level 5 . | . . . . . . . . . . High Security . | . . . . . . . . . . Max Security . | . . . . . . . . . . Peak Influence 259 | 10 20 5 . 5 259 152 45 3 54 Initial 85 | . . . . . . 85 45 3 5 Average 58 | . 1 . . . 116 87 30 3 29 Influence Increases 966 | 10 20 5 . 5 563 291 . 5 67 Destroy 0b10 Robot/C 400 | . 20 . . . 280 80 . . 20 Destroy 0b10 Robot/NC 95 | 10 . 5 . 5 45 10 . . 20 Destroy Leader 98 | . . . . . 76 22 . . . Successful Hack 26 | . . . . . 16 5 . 5 . Disable Machine 45 | . . . . . 30 15 . . . Anti-Garrison Action 150 | . . . . . . 150 . . . Destroy Structure 92 | . . . . . 56 9 . . 27 Partial Spotted 30 | . . . . . 30 . . . . Lose Combat Pursuer 30 | . . . . . 30 . . . . Influence Decreases 922 | 10 20 5 . 5 374 350 125 2 31 Entered New Map 194 | . . . . . . 104 85 2 3 Time Decay 660 | 10 20 5 . 5 354 246 20 . . Lost Part 48 | . . . . . 20 . . . 28 Lost Ally 20 | . . . . . . . 20 . . Squads Dispatched 13 | . 1 . . . 4 6 . . 2 Investigation 1 | . . . . . . 1 . . . Extermination 1 | . . . . . . 1 . . . Reinforcement 8 | . 1 . . . 4 1 . . 2 Assault 2 | . . . . . . 2 . . . Garrison 1 | . . . . . . 1 . . . Intercept . | . . . . . . . . . . Searches Triggered . | . . . . . . . . . . Construction Impeded . | . . . . . . . . . . Haulers Reinforced . | . . . . . . . . . . Active Scanning Responses . | . . . . . . . . . . Cargo Convoy Interrupts . | . . . . . . . . . . Stealth | -11 -10 -10 -10 -9 -8 -7 -7 -7 -7 --------- Run | Yrd Mat Min Exi Min Mat Fac Was Fac DSF Distress Signals 4 | . 1 . . . 2 1 . . . Communications Jammed . | . . . . . . . . . . Distress Signals . | . . . . . . . . . . Times Spotted 48 | . 2 . . . 25 7 5 . 9 Peak Tracking Total 8 | . 2 . . . 4 2 5 . 8 Tactical Retreats 2 | . . . . . 2 . . . . Traps | -11 -10 -10 -10 -9 -8 -7 -7 -7 -7 ------- Run | Yrd Mat Min Exi Min Mat Fac Was Fac DSF Traps Triggered 5 | . 1 . . . . 3 . . 1 Indirectly . | . . . . . . . . . . Trap Hack Attempts . | . . . . . . . . . . Triggered . | . . . . . . . . . . Disarmed . | . . . . . . . . . . Reprogrammed . | . . . . . . . . . . Reused . | . . . . . . . . . . Traps Extracted . | . . . . . . . . . . Installed 5 | . . . . 5 . . . . . Triggered . | . . . . . . . . . . Machines | -11 -10 -10 -10 -9 -8 -7 -7 -7 -7 ---------- Run | Yrd Mat Min Exi Min Mat Fac Was Fac DSF Machines Disabled 4 | . . . . . 2 2 . . . Max in Single Turn 2 | . . . . . 2 1 . . . Garrison Access 2 | . . . . . 1 1 . . . Machines Repaired . | . . . . . . . . . . Machines Dismantled . | . . . . . . . . . . Machines Sabotaged . | . . . . . . . . . . Overloaded Fab Kills . | . . . . . . . . . . Hacking | -11 -10 -10 -10 -9 -8 -7 -7 -7 -7 --------- Run | Yrd Mat Min Exi Min Mat Fac Was Fac DSF Machines Accessed 11 | . . . 1 . 5 4 . 1 . Terminals 8 | . . . . . 4 3 . 1 . Fabricators . | . . . . . . . . . . Repair Stations . | . . . . . . . . . . Recycling Units . | . . . . . . . . . . Scanalyzers . | . . . . . . . . . . Garrison Access 2 | . . . . . 1 1 . . . Total Hacks 21 | . . . 1 . 11 8 . 1 . Successful 7 | . . . 1 . 4 1 . 1 . Failed 14 | . . . . . 7 7 . . . Catastrophic 4 | . . . . . 1 3 . . . Database Lockouts . | . . . . . . . . . . Manual 10 | . . . 1 . 4 5 . . . Terminals 18 | . . . . . 10 7 . 1 . Fabricators . | . . . . . . . . . . Repair Stations . | . . . . . . . . . . Recycling Units . | . . . . . . . . . . Scanalyzers . | . . . . . . . . . . Garrison Access 2 | . . . . . 1 1 . . . Terminal Hacks 5 | . . . 1 . 2 1 . 1 . Robot Analysis 1 | . . . . . 1 . . . . Open DSF 2 | . . . . . . 1 . 1 . Branch Access Points 1 | . . . . . 1 . . . . Proto ID Catalog 1 | . . . 1 . . . . . . Fabricator Hacks . | . . . . . . . . . . Repair Station Hacks . | . . . . . . . . . . Recycling Unit Hacks . | . . . . . . . . . . Scanalyzer . | . . . . . . . . . . Garrison Access Hacks 1 | . . . . . 1 . . . . Seal Access 1 | . . . . . 1 . . . . Unauthorized Hacks 1 | . . . . . 1 . . . . Terminals 1 | . . . . . 1 . . . . Assimilate 1 | . . . . . 1 . . . . Fabricators . | . . . . . . . . . . Repair Stations . | . . . . . . . . . . Recycling Units . | . . . . . . . . . . Scanalyzers . | . . . . . . . . . . Garrison Access . | . . . . . . . . . . Data Cores Recovered . | . . . . . . . . . . Used . | . . . . . . . . . . Hacking Detections 8 | . . . . . 4 4 . . . Full Trace Events 1 | . . . . . . 1 . . . Feedback Events . | . . . . . . . . . . Feedback Blocked . | . . . . . . . . . . Robot Schematics Acquired . | . . . . . . . . . . Robots Built . | . . . . . . . . . . Authchips . | . . . . . . . . . . Time . | . . . . . . . . . . Total Robot Build Rating . | . . . . . . . . . . Part Schematics Acquired . | . . . . . . . . . . Parts Built . | . . . . . . . . . . Authchips . | . . . . . . . . . . Time . | . . . . . . . . . . Total Part Build Rating . | . . . . . . . . . . Parts Repaired . | . . . . . . . . . . Time . | . . . . . . . . . . Parts Recycled . | . . . . . . . . . . Recycled Matter . | . . . . . . . . . . Retrieved Matter . | . . . . . . . . . . Retrieved Components . | . . . . . . . . . . Parts Scanalyzed . | . . . . . . . . . . Part Schematics Acquired . | . . . . . . . . . . Parts Damaged . | . . . . . . . . . . Bothacking | -11 -10 -10 -10 -9 -8 -7 -7 -7 -7 ------------ Run | Yrd Mat Min Exi Min Mat Fac Was Fac DSF Used RIF Installer . | . . . . . . . . . . Robots Hacked 1 | . . . . . 1 . . . . Non-combat 1 | . . . . . 1 . . . . Combat . | . . . . . . . . . . Robot Hacks Applied 2 | . . . . . 2 . . . . parse_system 1 | . . . . . 1 . . . . no_distress 1 | . . . . . 1 . . . . Relay Couplers Released 4 | . . . . . . 4 . . . Machine Destruction 4 | . . . . . . 4 . . . Fabnet Peak Effective % . | . . . . . . . . . . Robots Rewired . | . . . . . . . . . . Allies Hacked . | . . . . . . . . . . Hacks Repelled . | . . . . . . . . . . Allies | -11 -10 -10 -10 -9 -8 -7 -7 -7 -7 -------- Run | Yrd Mat Min Exi Min Mat Fac Was Fac DSF Total Allies 2 | . . . . . 1 . 1 . . Largest Group 1 | . . . . . 1 . 1 . . Highest-Rated Group 31 | . . . . . 26 . 31 . . Highest-Rated Ally 31 | . . . . . 26 . 31 . . Total Orders . | . . . . . . . . . . Ally Attacks 12 | . . . . . . . 12 . . Total Damage 208 | . . . . . . . 208 . . Kills . | . . . . . . . . . . Allies Corrupted . | . . . . . . . . . . Allies Melted . | . . . . . . . . . . Intel | -11 -10 -10 -10 -9 -8 -7 -7 -7 -7 ------- Run | Yrd Mat Min Exi Min Mat Fac Was Fac DSF Active Infowar (turns) 2776 | 50 183 443 256 312 916 522 52 4 38 Seismic 2511 | 50 183 443 256 312 651 522 52 4 38 T.N.C. 1510 | . . . . . 914 522 52 4 18 Jamming 256 | . . . . . . 256 . . . Robot Analysis Total 1 | . . . . . 1 . . . . Derelict Logs Recovered 4 | . . 1 . 3 . . . . . Drone Launches . | . . . . . . . . . . Drone Recoveries . | . . . . . . . . . . Exploration | -11 -10 -10 -10 -9 -8 -7 -7 -7 -7 ------------- Run | Yrd Mat Min Exi Min Mat Fac Was Fac DSF Turns Passed 2933 | 139 183 443 256 312 916 522 52 4 106 Spaces Moved 3092 | 76 97 415 255 299 760 953 117 5 115 Core 6 | 6 . . . . . . . . . Treads 186 | 70 97 19 . . . . . . . Legs . | . . . . . . . . . . Wheels 1352 | . . 396 255 299 402 . . . . Hover 1548 | . . . . . 358 953 117 5 115 Flight . | . . . . . . . . . . Fastest Speed 43 | 50 160 100 100 100 48 43 43 43 43 Average Speed 77 | 151 160 102 100 100 80 43 43 43 59 Slowest Speed 160 | 160 160 160 100 100 130 45 43 43 111 Overloaded Moves . | . . . . . . . . . . Propulsion Burnouts . | . . . . . . . . . . Robots Hopped . | . . . . . . . . . . Potential Cave-ins . | . . . . . . . . . . Cave-ins Triggered . | . . . . . . . . . . Exploration Rate (%) 41 | 4 25 44 62 55 50 29 87 1 59 Regions Visited 9 Branch Regions 3 Pre-discovered Areas 2 | . . . . 2 . . . . . Known Exits Taken 1 | . . . . . . . . 1 . Unknown Exits Taken 6 | 1 1 1 1 1 1 . . . . Scrap Searched 3 | . . . . 3 . . . . . Spaces Dug 8 | . . . . . . 8 . . . Terrain Destroyed 104 | . . . . . 65 8 . . 31 Melee 8 | . . . . . . 8 . . . Projectile 2 | . . . . . 2 . . . . AOE 94 | . . . . . 63 . . . 31 Terrain Rammed . | . . . . . . . . . . Walls Destroyed . | . . . . . . . . . . Machines Disabled . | . . . . . . . . . . Actions | -11 -10 -10 -10 -9 -8 -7 -7 -7 -7 --------- Run | Yrd Mat Min Exi Min Mat Fac Was Fac DSF Total 3461 | 91 117 423 256 313 969 1033 117 5 137 Wait 123 | . 14 . . 1 84 24 . . . Move 3084 | 75 96 414 254 298 759 953 116 4 115 Hop . | . . . . . . . . . . Pick Up 41 | 5 3 1 1 3 20 7 . . 1 Fast Attach 23 | 7 . . . . 9 6 . . 1 Attach 20 | . . . . . 13 3 . . 4 Detach 10 | . . . . . 6 1 . . 3 Swap 23 | 1 . 2 . 1 6 10 1 1 1 Drop 37 | . . 1 1 4 20 10 . . 1 Fire 79 | 3 4 4 . 1 47 9 . . 11 Melee 13 | . . . . . 3 10 . . . Ram 3 | . . 1 . . 2 . . . . Kick . | . . . . . . . . . . Crush . | . . . . . . . . . . Escape Stasis . | . . . . . . . . . . Rewire . | . . . . . . . . . . Trap 5 | . . . . 5 . . . . . Miscellaneous . | . . . . . . . . . . Route ------- -11/Scrapyard -10/Materials -10/Mines (discovered 2 exits: Mat / *Exi) -10/Exiles -9/Mines -8/Materials -7/Factory -7/Waste -7/Factory -7/DSF History --------- Turn | Location | Event 2 | -11/Scrapyard | Met Revision 17 22 | -11/Scrapyard | Discovered new exit (range 16) 140 | -11/Scrapyard | Entered Materials 244 | -10/Materials | Discovered new exit (range 14) 254 | -10/Materials | Met 8R-AWN 312 | -10/Materials | Build established: Mutant 323 | -10/Materials | Entered Mines 325 | -10/Mines | Followed 8R-AWN into the Mines 606 | -10/Mines | Discovered new exit (range 5) 692 | -10/Mines | Identified exit to Materials 766 | -10/Mines | Entered Exiles 790 | -10/Exiles | Welcomed by 8R-AWN 807 | -10/Exiles | Met EX-HEX 838 | -10/Exiles | Met EX-BIN 857 | -10/Exiles | Aligned with FarCom system 858 | -10/Exiles | Given EX-Vault access code 881 | -10/Exiles | Opened EX-Vault 890 | -10/Exiles | Found Modified TNC 913 | -10/Exiles | Warned to stay clear of 0b10 Research branches 951 | -10/Exiles | Met EX-DEC 1013 | -10/Exiles | Discovered new exit (range 10) 1022 | -10/Exiles | Left Exiles lab with Modified TNC 1022 | -10/Exiles | Entered Mines 1091 | -9/Mines | A weapon hastily lodged in a ceiling crevice suddenly fell to the ground 1129 | -9/Mines | Learned location of Zion (-7) 1186 | -9/Mines | Learned Materials garrison access intel 1218 | -9/Mines | Found a hidden stash of uninstalled traps 1253 | -9/Mines | Learned location of Storage (-9) 1259 | -9/Mines | Discovered new exit (range 6) 1266 | -9/Mines | Received a Rocket Launcher from a helpful Derelict 1334 | -9/Mines | Entered Materials 1334 | -8/Materials | Evolved 4 slots: Propulsion x1, Utility x1, Weapon x2 1335 | -8/Materials | Loaded intel: 1 garrison access location 1637 | -8/Materials | Build established: Skirmisher 1699 | -8/Materials | Discovered new exit (range 6) 2250 | -8/Materials | Entered Factory 2250 | -7/Factory | Evolved 2 slots: Propulsion x1, Utility x1 2339 | -7/Factory | Garrison activated, responded to threat 2622 | -7/Factory | Discovered new exit (range 12) 2772 | -7/Factory | Sucked down chute 2772 | -7/Factory | Entered Waste 2773 | -7/Waste | Met a frightened Derelict 2787 | -7/Waste | EMP discharged 2787 | -7/Waste | System corruption reached 10% 2787 | -7/Waste | Spotted C-40 Crusher 2792 | -7/Waste | Spotted C-40 Crusher 2799 | -7/Waste | Spotted C-40 Crusher 2802 | -7/Waste | Spotted C-40 Crusher 2809 | -7/Waste | Spotted C-40 Crusher 2820 | -7/Waste | Discovered new exit (range 10) 2824 | -7/Waste | Entered Factory 2828 | -7/Factory | Identified exit to DSF 2828 | -7/Factory | Entered DSF 2853 | -7/DSF | Additional patrols routed to DSF 2897 | -7/DSF | Lost 6 parts (2n3u1w) 2934 | -7/DSF | Self-destructed Last Messages --------------- 02870_ Knocked back. 02871_ System corrupted: Heat flow error (+234). 02876_ The unstable cave ceiling collapses. 02880_ H-61 Shepherd destroyed. 02886_ System corrupted: Energy discharge (-96). 02892_ Acquired 10 matter. 02894_ The unstable cave ceiling collapses. 02894_ Acquired Adv. Assault Cannon. 02900_ Acquired 1 matter. 02902_ The unstable cave ceiling collapses. 02907_ System corrupted: Matter fused (-1). 02912_ Dropped Enh. Autogun. 02926_ Knocked back. 02926_ Aerolev Unit destroyed. 02926_ Knocked back. 02929_ Imp. Medium Armor Plating severed. 02933_ System corrupted: Matter fused (-5). 02933_ C-30 ARC bursts open, deploying its payload. 02933_ S-27 Virus unfolds itself. Map ----- +----------------------------------------------------+ | ??????????????????????????????????????? | | ??????????????????????????????????????? | | ??????????????????????????????????????? | | ??????????????????????????????????????? | | #???????????###???????????????????????? | | #??????????## ##??????????????????????? | | ##???????###"""###????????????????????? | | "######### !#????????????????????? | | "##[[# # !!#????????????????????? | | #????????????????????? | | #????????????????????? | | ## [#[[[### "##????????????????????? | | ### #[[[## ###????????????????????? | | ########## g #????????????????????? | | [[#??????# #????????????????????? | | [[#??????# #????????????????????? | | ###?????#### ###???????????????????? | | [[#????## #???????????????????? | | [[#????# [[[ ##??????????????????? | | [[#????## #??????????????????? | | ###??#### # ## ########??####??????? | | #????#!! !!!!#!!!#? !!#??????? | | #????#!! !!!#!!!## !!#??????? | | #??????? | | #??????? | | c c @ss #??????? | | ## #!!! !!!#[[[##ss #??????? | | #? #!!!### # #!!!#[[[#??? #??????? | | #??######??# ###########?????#??????? | | !?????????!! ???????????????????????? | | !????????#!! ???????????????????????? | | !????????#!! ????????????????????????? | | #????????### ????????????????????????? | | !?????????? ????????????????????????? | | !?????????? ??????????????????????????? | | #?????????????????????????????????????? | | ??????????????????????????????????????? | | ??????????????????????????????????????? | | ??????????????????????????????????????? | | ??????????????????????????????????????? | | ??????????????????????????????????????? | | ??????????????????????????????????????? | | ??????????????????????????????????????? | | ??????????????????????????????????????? | | ??????????????????????????????????????? | | ??????????????????????????????????????? | | ??????????????????????????????????????? | | ??????????????????????????????????????? | | ??????????????????????????????????????? | | ??????????????????????????????????????? | +----------------------------------------------------+ Best States ------------- Heat Dissipation 34 Energy Generation 17 Energy Capacity 300 Matter Stores 300 Matter Capacity 300 Sight Range 16 Terrain Scan Density 10 Jamming Range 12 Armor Coverage 375 Evasion (%) 56 Recoil Reduction 2 Kinecelleration 30 Item Schematics ----------------- None Robot Schematics ------------------ None Fabricated ------------ Nothing Repaired ---------- Nothing Alien Tech Used ----------------- None Achievements -------------- None Challenges ------------ None Game ------ Seed NeutrinoShrapnelDiverter Manual? 0 Play Time 00:44:14 Cumulative 52.2 hours Start 2025.05.23 @ 03:54:04 End 2025.05.23 @ 04:45:01 Sessions 1 Manual Loads 0 Difficulty Rogue Special Mode None Game No. 90 Rogue 90 Adventurer 0 Explorer 0 Win Type - Total 0 Types 0/0/0/0/0/0/0/0/0/0 Lore% 44 Gallery% 32 Achievement% 30 Wizard Run 0 Options --------- Layout 2 ASCII 0 Keyboard 1 Movement Arrows Keybinds 0 Fullscreen 2 Font 32/SmallcapsGlow Map View 50x44 Zoom Use 0% Tactical HUD 1 Map Filters NONE Filters NONE Steam 1 RUN: 4d588ef0-34c5-4353-bbdb-8e37e992b6fc